fUST/lending_fUST_20250118
["ID","MTS","AMOUNT","RATE_DAILY","PERIOD"]
[349399062,1737163838913,-500.0,0.00021917,2]
[349399063,1737163838923,-500.0,0.00021917,3]
[349399064,1737163838934,-500.0,0.00021917,3]
[349399065,1737163838943,-504.74934335,0.00021917,3]
[349399066,1737163838953,-241.43560908,0.00021917,3]
[349399067,1737163838964,-500.0,0.00021917,3]
[349399068,1737163838974,-500.0,0.00021917,3]
[349399069,1737163838983,-500.0,0.00021917,3]
[349399070,1737163838993,-200.0,0.00021917,3]
[349399071,1737163839003,-500.0,0.00021917,3]
[349399072,1737163839012,-500.0,0.00021917,3]
[349399073,1737163839022,-500.0,0.00021917,3]
[349399074,1737163839032,-500.0,0.00021917,3]
[349399075,1737163839042,-500.0,0.00021917,3]
[349399076,1737163839052,-576.85504156,0.00021917,3]
[349399077,1737163839064,-500.0,0.00021917,3]
[349399078,1737163839077,-500.0,0.00021917,3]
[349399079,1737163839087,-500.0,0.00021917,3]
[349399080,1737163839097,-500.0,0.00021917,3]
[349399081,1737163839107,-500.0,0.00021917,3]
[349399082,1737163839116,-500.0,0.00021917,3]
[349399083,1737163839126,-500.0,0.00021917,3]
[349399084,1737163839135,-500.0,0.00021917,3]
[349399085,1737163839146,-500.0,0.00021917,3]
[349399086,1737163839156,-500.0,0.00021917,3]
[349399087,1737163839166,-500.0,0.00021917,3]
[349399088,1737163839175,-500.0,0.00021917,3]
[349399089,1737163839184,-500.0,0.00021917,3]
[349399090,1737163839194,-500.0,0.00021917,3]
[349399091,1737163839203,-500.0,0.00021917,3]
[349399092,1737163839213,-500.0,0.00021917,3]
[349399093,1737163839223,-500.0,0.00021917,3]
[349399094,1737163839232,-236.15704356,0.00021917,3]
[349399095,1737163839242,-500.0,0.00021917,3]
[349399096,1737163839252,-500.0,0.00021917,3]
[349399097,1737163839262,-346.25252061,0.00021917,3]
[349399098,1737163839273,-500.0,0.00021917,3]
[349399099,1737163839284,-500.0,0.00021917,3]
[349399100,1737163839293,-500.0,0.00021917,3]
[349399101,1737163839303,-500.0,0.00021917,3]
[349399102,1737163839312,-500.0,0.00021917,3]
[349399103,1737163839322,-500.0,0.00021917,3]
[349399104,1737163839332,-500.0,0.00021917,3]
[349399105,1737163839342,-500.0,0.00021917,3]
[349399106,1737163839352,-512.75452373,0.00021917,3]
[349399107,1737163839361,-500.0,0.00021917,3]
[349399108,1737163839372,-500.0,0.00021917,3]
[349399109,1737163839382,-500.0,0.00021917,3]
[349399110,1737163839392,-500.0,0.00021917,3]
[349399111,1737163839401,-500.0,0.00021917,3]
[349399112,1737163839411,-500.0,0.00021917,3]
[349399113,1737163839422,-500.0,0.00021917,3]
[349399114,1737163839431,-500.0,0.00021917,3]
[349399115,1737163839441,-500.0,0.00021917,3]
[349399116,1737163839451,-508.80068032,0.00021917,3]
[349399117,1737163839461,-500.0,0.00021917,3]
[349399118,1737163839471,-500.0,0.00021917,3]
[349399119,1737163839481,-500.0,0.00021917,3]
[349399120,1737163839491,-500.0,0.00021917,3]
[349399121,1737163839500,-408.91527156,0.00021917,3]
[349399122,1737163839510,-550.13372414,0.00021917,3]
[349399123,1737163839519,-500.0,0.00021917,3]
[349399124,1737163839530,-500.0,0.00021917,3]
[349399125,1737163839540,-500.0,0.00021917,3]
[349399126,1737163839550,-500.0,0.00021917,3]
[349399127,1737163839560,-500.0,0.00021917,3]
[349399128,1737163839571,-500.0,0.00021917,3]
[349399129,1737163839581,-500.0,0.00021917,3]
[349399130,1737163839590,-552.07692164,0.00021917,3]
[349399131,1737163839600,-239.60298842,0.00021917,3]
[349399132,1737163839610,-594.09176665,0.00021917,3]
[349399133,1737163839620,-500.0,0.00021917,3]
[349399134,1737163839631,-526.69689525,0.00021917,3]
[349399135,1737163839642,-500.0,0.00021917,3]
[349399136,1737163839652,-500.0,0.00021917,3]
[349399137,1737163839662,-500.0,0.00021917,3]
[349399138,1737163839676,-508.14067511,0.00021917,3]
[349399139,1737163839685,-500.0,0.00021917,3]
[349399140,1737163839695,-500.0,0.00021917,3]
[349399141,1737163839704,-500.0,0.00021917,3]
[349399142,1737163839714,-500.0,0.00021917,3]
[349399143,1737163839723,-500.0,0.00021917,3]
[349399144,1737163839733,-500.0,0.00021917,3]
[349399145,1737163839743,-453.24962985,0.00021917,3]
[349399146,1737163839752,-500.0,0.00021917,3]
[349399147,1737163839761,-500.0,0.00021917,3]
[349399148,1737163839773,-500.0,0.00021917,3]
[349399149,1737163839782,-500.0,0.00021917,3]
[349399150,1737163839792,-500.0,0.00021917,3]
[349399151,1737163839801,-500.0,0.00021917,3]
[349399152,1737163839811,-412.48,0.00021917,3]
[349399153,1737163839822,-500.0,0.00021917,3]
[349399154,1737163839831,-500.0,0.00021917,3]
[349399155,1737163839842,-500.0,0.00021917,3]
[349399156,1737163839852,-151.0,0.00021917,2]
[349399157,1737163839863,-500.0,0.00021917,3]
[349399158,1737163839875,-198.26223673,0.00021917,3]
[349399159,1737163839885,-500.0,0.00021917,3]
[349399161,1737163839895,-500.0,0.00021917,3]
[349399162,1737163839905,-500.0,0.00021917,3]
[349399163,1737163839916,-500.0,0.00021917,3]
[349399164,1737163839926,-500.0,0.00021917,3]
[349399165,1737163839937,-500.0,0.00021917,3]
[349399166,1737163839948,-500.0,0.00021917,3]
[349399167,1737163839959,-387.20633977,0.00021917,3]
[349399168,1737163839970,-500.0,0.00021917,3]
[349399169,1737163839980,-500.00277067,0.00021917,3]
[349399170,1737163839990,-500.0,0.00021917,3]
[349399171,1737163839999,-506.36213512,0.00021917,3]
[349399172,1737163840010,-500.0,0.00021917,3]
[349399173,1737163840020,-500.0,0.00021917,3]
[349399174,1737163840030,-500.0,0.00021917,3]
[349399175,1737163840040,-500.0,0.00021917,3]
[349399176,1737163840051,-508.77815397,0.00021917,3]
[349399177,1737163840063,-500.0,0.00021917,3]
[349399179,1737163840075,-500.0,0.00021917,3]
[349399181,1737163840085,-500.0,0.00021917,3]
[349399182,1737163840095,-318.41576758,0.00021917,3]
[349399183,1737163840104,-510.2793642,0.00021917,3]
[349399184,1737163840116,-500.0,0.00021917,3]
[349399185,1737163840126,-500.0,0.00021917,3]
[349399186,1737163840135,-500.0,0.00021917,3]
[349399187,1737163840148,-151.0,0.00021917,2]
[349399188,1737163840158,-258.584052,0.00021917,2]
[349399189,1737163840168,-485.35868827,0.00021917,3]
[349399278,1737163846391,-14.64131173,0.00021917,3]
[349399279,1737163846401,-500.0,0.00021917,3]
[349399280,1737163846410,-500.0,0.00021917,3]
[349399281,1737163846420,-500.0,0.00021917,3]
[349399282,1737163846429,-255.87119514,0.00021917,3]
[349399283,1737163846439,-500.0,0.00021917,3]
[349399284,1737163846449,-500.0,0.00021917,3]
[349399285,1737163846459,-500.0,0.00021917,3]
[349399286,1737163846470,-500.0,0.00021917,3]
[349399287,1737163846480,-500.0,0.00021917,3]
[349399288,1737163846489,-638.42631694,0.00021917,3]
[349399289,1737163846499,-601.650572,0.00021917,2]
[349399290,1737163846508,-601.650572,0.00021917,2]
[349399291,1737163846517,-601.650572,0.00021917,2]
[349399292,1737163846527,-601.650572,0.00021917,2]
[349399293,1737163846536,-601.650572,0.00021917,2]
[349399294,1737163846546,-540.55831619,0.00021917,2]
[349399295,1737164073250,164.451651,0.00013973,2]
[349399297,1737164252679,2396.0,0.00025,120]
[349399298,1737164342268,203.0,0.000167,2]
[349399299,1737164835298,162.0,0.00025,120]
[349399308,1737164990937,164.860068,0.00013973,2]
[349399311,1737165027984,1000.0,0.00025,120]
[349399385,1737165038306,-150.07528968,0.0002,2]
[349399387,1737165038316,-412.792,0.0002082,2]
[349399389,1737165038326,-470.59538146,0.00020989,2]
[349399390,1737165038335,-3516.55198467,0.00021111,2]
[349399391,1737165038344,-160.99631642,0.00021627,5]
[349399392,1737165038354,-152.0,0.00021665,2]
[349399393,1737165038363,-300.0,0.00021686,2]
[349399394,1737165038372,-9468.60055361,0.00021687,2]
[349399395,1737165038381,-842.8215878,0.00021697,2]
[349399396,1737165038390,-150.124199,0.000217,2]
[349399397,1737165038400,-1000.0,0.00021795,2]
[349399398,1737165038409,-159.89,0.00021802,2]
[349399399,1737165038418,-950.52373736,0.00021802,2]
[349399400,1737165038491,-49.47626264,0.00021802,2]
[349399401,1737165038500,-164.25872666,0.00021817,2]
[349399402,1737165038509,-199.5650157,0.00021818,2]
[349399403,1737165038521,-800.4349843,0.00021818,2]
[349399404,1737165038531,-1000.0,0.00021819,2]
[349399405,1737165038540,-1000.0,0.00021824,2]
[349399406,1737165038549,-1000.0,0.0002184,2]
[349399407,1737165038559,-1000.0,0.00021844,2]
[349399408,1737165038568,-1000.0,0.00021858,2]
[349399409,1737165038577,-1000.0,0.00021874,2]
[349399410,1737165038587,-492.8650157,0.00021879,2]
[349399413,1737165040731,-507.1349843,0.00021879,2]
[349399414,1737165040742,-1000.0,0.00021898,2]
[349399415,1737165040752,-2008.09705407,0.000219,2]
[349399416,1737165040761,-179.685,0.000219,2]
[349399418,1737165040771,-1837.37785099,0.000219,3]
[349399420,1737165040780,-319.79011163,0.000219,3]
[349399421,1737165040789,-164.25872665,0.00021908,2]
[349399422,1737165040799,-1000.0,0.00021911,2]
[349399423,1737165040809,-172.36990386,0.00021916,2]
[349399424,1737165040818,-503.76008166,0.00021916,2]
[349399425,1737165040828,-500.0,0.00021916,2]
[349399426,1737165040837,-500.0,0.00021916,2]
[349399427,1737165040847,-500.0,0.00021916,2]
[349399428,1737165040856,-500.0,0.00021916,2]
[349399429,1737165040865,-500.0,0.00021916,2]
[349399430,1737165040873,-512.23650598,0.00021916,2]
[349399431,1737165040882,-572.46609771,0.00021916,2]
[349399432,1737165040892,-500.0,0.00021916,2]
[349399433,1737165040901,-500.0,0.00021916,2]
[349399434,1737165040910,-360.89142199,0.00021916,2]
[349399435,1737165040919,-260.64783752,0.00021916,2]
[349399436,1737165040932,-108.60709866,0.00021916,2]
[349399437,1737165040941,-523.86811542,0.00021916,2]
[349399438,1737165040951,-298.97213229,0.00021917,5]
[349399439,1737165040961,-9071.12370552,0.00021917,3]
[349399440,1737165040971,-501.11800601,0.00021917,3]
[349399441,1737165040980,-253.55430494,0.00021917,3]
[349399442,1737165040989,-501.17228532,0.00021917,3]
[349399443,1737165040999,-501.69659313,0.00021917,3]
[349399444,1737165041019,-497.00634377,0.00021917,3]
[349399445,1737165041030,-501.76127273,0.00021917,3]
[349399446,1737165041040,-502.29979048,0.00021917,3]
[349399447,1737165041049,-503.2815676,0.00021917,3]
[349399448,1737165041059,-504.21682046,0.00021917,3]
[349399449,1737165041069,-501.45298974,0.00021917,3]
[349399450,1737165041079,-505.77076527,0.00021917,3]
[349399451,1737165041088,-503.29533633,0.00021917,3]
[349399452,1737165041098,-500.0,0.00021917,3]
[349399453,1737165041108,-501.57930605,0.00021917,3]
[349399454,1737165041117,-501.64311953,0.00021917,3]
[349399455,1737165041127,-151.0,0.00021917,2]
[349399456,1737165041137,-152.017158,0.00021917,2]
[349399457,1737165041146,-501.29224031,0.00021917,3]
[349399458,1737165041156,-500.89660686,0.00021917,3]
[349399459,1737165041166,-502.16062943,0.00021917,3]
[349399460,1737165041175,-151.0,0.00021917,2]
[349399461,1737165041185,-151.0,0.00021917,2]
[349399462,1737165041194,-155.00873533,0.00021917,2]
[349399463,1737165041204,-508.04148243,0.00021917,3]
[349399464,1737165041214,-502.9226123,0.00021917,3]
[349399465,1737165041224,-501.94178617,0.00021917,3]
[349399466,1737165041233,-502.3441389,0.00021917,3]
[349399467,1737165041243,-504.52631765,0.00021917,3]
[349399468,1737165041254,-647.48047387,0.00021917,3]
[349399469,1737165041264,-502.69918732,0.00021917,3]
[349399470,1737165041274,-500.0,0.00021917,3]
[349399471,1737165041285,-502.78329637,0.00021917,3]
[349399472,1737165041295,-507.69625337,0.00021917,3]
[349399473,1737165041304,-499.12937154,0.00021917,3]
[349399474,1737165041314,-504.54229423,0.00021917,3]
[349399475,1737165041324,-504.05824831,0.00021917,3]
[349399476,1737165041334,-501.56211503,0.00021917,3]
[349399477,1737165041344,-512.09085615,0.00021917,3]
[349399478,1737165041354,-502.83996862,0.00021917,3]
[349399479,1737165041364,-502.58599783,0.00021917,3]
[349399480,1737165041373,-502.44855368,0.00021917,3]
[349399481,1737165041383,-151.0,0.00021917,2]
[349399482,1737165041393,-228.531079,0.00021917,2]
[349399483,1737165041403,-500.0,0.00021917,3]
[349399484,1737165041413,-500.0,0.00021917,3]
[349399485,1737165041423,-500.0,0.00021917,3]
[349399486,1737165041434,-151.0,0.00021917,2]
[349399487,1737165041448,-152.029607,0.00021917,2]
[349399488,1737165041458,-510.74060437,0.00021917,3]
[349399489,1737165041468,-501.68833438,0.00021917,3]
[349399490,1737165041478,-505.97531514,0.00021917,3]
[349399491,1737165041490,-500.96281738,0.00021917,3]
[349399492,1737165041501,-500.0,0.00021917,3]
[349399493,1737165041512,-362.07440185,0.00021917,3]
[349399494,1737165041523,-152.393095,0.00021917,2]
[349399495,1737165041532,-500.0,0.00021917,3]
[349399496,1737165041542,-503.43740876,0.00021917,3]
[349399497,1737165041552,-500.0,0.00021917,3]
[349399498,1737165041562,-527.05509918,0.00021917,3]
[349399499,1737165041572,-151.0,0.00021917,2]
[349399500,1737165041582,-151.0,0.00021917,2]
[349399501,1737165041592,-151.0,0.00021917,2]
[349399502,1737165041602,-154.615149,0.00021917,2]
[349399503,1737165041612,-500.0,0.00021917,3]
[349399504,1737165041622,-1000.0,0.00021917,2]
[349399505,1737165041632,-500.0,0.00021917,3]
[349399506,1737165041642,-500.0,0.00021917,3]
[349399507,1737165041653,-502.1787952,0.00021917,3]
[349399508,1737165041665,-501.73919548,0.00021917,3]
[349399509,1737165041674,-507.36353399,0.00021917,3]
[349399510,1737165041684,-151.702199,0.00021917,2]
[349399511,1737165041694,-502.55602145,0.00021917,3]
[349399512,1737165041704,-506.02156401,0.00021917,3]
[349399513,1737165041714,-500.0,0.00021917,3]
[349399514,1737165041724,-500.0,0.00021917,3]
[349399515,1737165041734,-167.25503613,0.00021917,3]
[349399516,1737165041743,-203.42370436,0.00021917,3]
[349399517,1737165041754,-500.0,0.00021917,3]
[349399518,1737165041763,-169.40030785,0.00021917,3]
[349399519,1737165041773,-500.0,0.00021917,3]
[349399520,1737165041783,-500.0,0.00021917,3]
[349399521,1737165041793,-258.85459076,0.00021917,3]
[349399522,1737165041802,-544.32019217,0.00021917,3]
[349399523,1737165041813,-500.0,0.00021917,3]
[349399524,1737165041823,-516.3839212,0.00021917,3]
[349399525,1737165041832,-500.0,0.00021917,3]
[349399526,1737165041842,-500.0,0.00021917,3]
[349399527,1737165041852,-502.52712439,0.00021917,3]
[349399528,1737165041862,-500.0,0.00021917,3]
[349399529,1737165041872,-500.0,0.00021917,3]
[349399530,1737165041881,-505.43655633,0.00021917,3]
[349399531,1737165041890,-500.0,0.00021917,3]
[349399532,1737165041900,-500.0,0.00021917,3]
[349399533,1737165041910,-511.60518507,0.00021917,3]
[349399534,1737165041919,-500.0,0.00021917,3]
[349399535,1737165041929,-151.0,0.00021917,2]
[349399536,1737165041939,-152.684493,0.00021917,2]
[349399537,1737165041949,-500.0,0.00021917,3]
[349399538,1737165041958,-500.0,0.00021917,3]
[349399539,1737165041967,-505.46140423,0.00021917,3]
[349399540,1737165041977,-501.5505273,0.00021917,3]
[349399541,1737165041987,-500.0,0.00021917,3]
[349399542,1737165041997,-500.0,0.00021917,3]
[349399543,1737165042007,-500.0,0.00021917,3]
[349399544,1737165042016,-500.0,0.00021917,3]
[349399545,1737165042026,-500.0,0.00021917,3]
[349399546,1737165042036,-504.85586468,0.00021917,3]
[349399547,1737165042046,-500.0,0.00021917,3]
[349399548,1737165042055,-500.0,0.00021917,3]
[349399549,1737165042067,-507.79160471,0.00021917,3]
[349399550,1737165042076,-670.36,0.00021917,3]
[349399551,1737165042087,-500.0,0.00021917,3]
[349399552,1737165042097,-502.73785899,0.00021917,3]
[349399553,1737165042107,-500.62284891,0.00021917,3]
[349399554,1737165042117,-500.0,0.00021917,3]
[349399555,1737165042126,-533.82207652,0.00021917,3]
[349399556,1737165042137,-502.73863162,0.00021917,3]
[349399557,1737165042147,-500.0,0.00021917,3]
[349399558,1737165042156,-502.22872027,0.00021917,3]
[349399559,1737165042166,-500.0,0.00021917,3]
[349399560,1737165042175,-500.0,0.00021917,3]
[349399561,1737165042185,-502.14924742,0.00021917,3]
[349399562,1737165042195,-500.0,0.00021917,3]
[349399563,1737165042205,-473.71689852,0.00021917,3]
[349399564,1737165042215,-500.82256808,0.00021917,3]
[349399565,1737165042224,-502.33359919,0.00021917,3]
[349399566,1737165042234,-634.41115595,0.00021917,3]
[349399567,1737165042243,-297.51892042,0.00021917,3]
[349399568,1737165042253,-500.0,0.00021917,3]
[349399569,1737165042263,-502.2691536,0.00021917,3]
[349399570,1737165042273,-500.0,0.00021917,3]
[349399571,1737165042283,-500.0,0.00021917,3]
[349399572,1737165042292,-500.0,0.00021917,3]
[349399573,1737165042302,-500.0,0.00021917,3]
[349399574,1737165042312,-504.69772839,0.00021917,3]
[349399575,1737165042322,-502.88025444,0.00021917,3]
[349399576,1737165042331,-503.21701265,0.00021917,3]
[349399577,1737165042341,-500.0,0.00021917,3]
[349399578,1737165042351,-502.13539253,0.00021917,3]
[349399579,1737165042361,-501.66716201,0.00021917,3]
[349399580,1737165042371,-500.0,0.00021917,3]
[349399581,1737165042380,-504.37811496,0.00021917,3]
[349399582,1737165042390,-505.01326091,0.00021917,3]
[349399583,1737165042400,-300.72688753,0.00021917,3]
[349399584,1737165042410,-501.34688544,0.00021917,3]
[349399585,1737165042420,-502.63923044,0.00021917,3]
[349399586,1737165042429,-504.6799684,0.00021917,3]
[349399587,1737165042441,-509.30869134,0.00021917,3]
[349399588,1737165042455,-500.0,0.00021917,3]
[349399589,1737165042467,-151.0,0.00021917,2]
[349399590,1737165042477,-151.0,0.00021917,2]
[349399591,1737165042488,-501.81283469,0.00021917,3]
[349399592,1737165042498,-220.1,0.00021917,2]
[349399593,1737165042508,-503.56620584,0.00021917,3]
[349399594,1737165042519,-506.90706814,0.00021917,3]
[349399595,1737165042529,-502.1259358,0.00021917,3]
[349399596,1737165042539,-540.91091491,0.00021917,3]
[349399597,1737165042549,-500.0,0.00021917,3]
[349399598,1737165042559,-503.17670183,0.00021917,3]
[349399599,1737165042568,-151.0,0.00021917,2]
[349399600,1737165042579,-151.0,0.00021917,2]
[349399601,1737165042589,-483.30004012,0.00021917,3]
[349399602,1737165042598,-151.0,0.00021917,2]
[349399603,1737165042608,-152.970785,0.00021917,2]
[349399604,1737165042618,-500.0,0.00021917,3]
[349399605,1737165042627,-502.439948,0.00021917,3]
[349399606,1737165042637,-502.84871921,0.00021917,3]
[349399607,1737165042647,-356.57113171,0.00021917,3]
[349399608,1737165042657,-501.5796958,0.00021917,2]
[349399609,1737165042667,-516.23911161,0.00021917,3]
[349399610,1737165042677,-502.1063834,0.00021917,3]
[349399611,1737165042686,-501.46704582,0.00021917,3]
[349399612,1737165042697,-500.0,0.00021917,3]
[349399613,1737165042707,-500.0,0.00021917,3]
[349399614,1737165042717,-500.0,0.00021917,3]
[349399615,1737165042727,-502.76053022,0.00021917,3]
[349399616,1737165042737,-354.28739036,0.00021917,3]
[349399617,1737165042747,-159.373182,0.00021917,2]
[349399618,1737165042757,-500.0,0.00021917,3]
[349399619,1737165042766,-502.3489428,0.00021917,3]
[349399620,1737165042776,-1526.67,0.00021917,3]
[349399621,1737165042786,-500.0,0.00021917,3]
[349399622,1737165042795,-500.0,0.00021917,3]
[349399623,1737165042805,-501.96360381,0.00021917,3]
[349399624,1737165042815,-153.749812,0.00021917,2]
[349399625,1737165042824,-516.56665684,0.00021917,3]
[349399626,1737165042834,-502.63177494,0.00021917,3]
[349399627,1737165042844,-500.0,0.00021917,3]
[349399628,1737165042853,-500.0,0.00021917,3]
[349399629,1737165042862,-1004.3213641,0.00021917,3]
[349399630,1737165042872,-500.0,0.00021917,3]
[349399631,1737165042881,-151.578819,0.00021917,2]
[349399632,1737165042890,-503.90784596,0.00021917,3]
[349399633,1737165042899,-500.0,0.00021917,3]
[349399635,1737165042909,-500.0,0.00021917,3]
[349399637,1737165042919,-504.7046452,0.00021917,3]
[349399639,1737165042928,-502.26147194,0.00021917,3]
[349399641,1737165042938,-501.48541421,0.00021917,3]
[349399643,1737165042947,-501.26791103,0.00021917,3]
[349399645,1737165042957,-502.17995842,0.00021917,3]
[349399647,1737165042967,-960.98,0.00021917,3]
[349399649,1737165042977,-509.32675285,0.00021917,3]
[349399650,1737165042987,-502.55824165,0.00021917,3]
[349399651,1737165042997,-500.0,0.00021917,3]
[349399652,1737165043006,-503.84066274,0.00021917,3]
[349399653,1737165043016,-3511.61,0.00021917,3]
[349399654,1737165043026,-500.0,0.00021917,3]
[349399655,1737165043035,-500.0,0.00021917,3]
[349399656,1737165043044,-500.0,0.00021917,3]
[349399657,1737165043054,-425.107708,0.00021917,2]
[349399658,1737165043064,-425.107708,0.00021917,2]
[349399659,1737165043074,-425.107708,0.00021917,2]
[349399660,1737165043083,-500.88077832,0.00021917,3]
[349399661,1737165043093,-425.107708,0.00021917,2]
[349399662,1737165043103,-500.0,0.00021917,3]
[349399663,1737165043114,-425.107708,0.00021917,2]
[349399665,1737165043124,-425.107708,0.00021917,2]
[349399667,1737165043133,-425.107708,0.00021917,2]
[349399668,1737165043143,-425.107708,0.00021917,2]
[349399669,1737165043153,-425.107708,0.00021917,2]
[349399670,1737165043303,-425.107708,0.00021917,2]
[349399671,1737165043313,-425.107708,0.00021917,2]
[349399673,1737165043323,-425.107708,0.00021917,2]
[349399675,1737165043333,-425.107708,0.00021917,2]
[349399676,1737165043343,-2961.83,0.00021917,3]
[349399677,1737165043353,-425.107708,0.00021917,2]
[349399678,1737165043363,-425.107708,0.00021917,2]
[349399679,1737165043373,-425.107708,0.00021917,2]
[349399680,1737165043384,-425.107708,0.00021917,2]
[349399681,1737165043394,-425.107708,0.00021917,2]
[349399682,1737165043404,-1289.87,0.00021917,3]
[349399683,1737165043413,-425.107708,0.00021917,2]
[349399684,1737165043423,-425.1077,0.00021917,2]
[349399685,1737165043433,-519.13425754,0.00021917,3]
[349399686,1737165043446,-505.28615501,0.00021917,3]
[349399687,1737165043456,-500.0,0.00021917,3]
[349399688,1737165043466,-500.0,0.00021917,3]
[349399689,1737165043476,-501.50912283,0.00021917,3]
[349399690,1737165043488,-501.16253112,0.00021917,2]
[349399691,1737165043499,-290.92900507,0.00021917,3]
[349399692,1737165043510,-154.23459013,0.00021917,3]
[349399693,1737165043521,-502.78473011,0.00021917,3]
[349399694,1737165043531,-524.22,0.00021917,3]
[349399695,1737165043541,-500.0,0.00021917,3]
[349399697,1737165043551,-500.0,0.00021917,3]
[349399699,1737165043561,-502.82703772,0.00021917,3]
[349399700,1737165043570,-500.0,0.00021917,2]
[349399702,1737165043580,-500.0,0.00021917,3]
[349399704,1737165043590,-236.21304624,0.00021917,3]
[349399706,1737165043600,-501.76335039,0.00021917,3]
[349399708,1737165043610,-500.0,0.00021917,3]
[349399710,1737165043620,-986.15,0.00021917,3]
[349399712,1737165043629,-500.0,0.00021917,3]
[349399714,1737165043639,-500.0,0.00021917,3]
[349399716,1737165043649,-500.0,0.00021917,3]
[349399718,1737165043659,-500.0,0.00021917,3]
[349399720,1737165043669,-500.0,0.00021917,3]
[349399722,1737165043679,-500.0,0.00021917,3]
[349399725,1737165043689,-522.97502718,0.00021917,2]
[349399727,1737165043698,-500.0,0.00021917,3]
[349399729,1737165043708,-500.0,0.00021917,3]
[349399731,1737165043718,-151.0,0.00021917,2]
[349399733,1737165043727,-2745.37,0.00021917,3]
[349399735,1737165043737,-151.0,0.00021917,2]
[349399737,1737165043746,-151.0,0.00021917,2]
[349399739,1737165043755,-151.0,0.00021917,2]
[349399741,1737165043764,-151.0,0.00021917,2]
[349399743,1737165043773,-151.0,0.00021917,2]
[349399745,1737165043783,-151.0,0.00021917,2]
[349399747,1737165043792,-155.812483,0.00021917,2]
[349399749,1737165043803,-501.1117257,0.00021917,3]
[349399751,1737165043813,-501.37466432,0.00021917,3]
[349399753,1737165043822,-200.0,0.00021917,3]
[349399755,1737165043832,-509.02739193,0.00021917,3]
[349399757,1737165043841,-500.0,0.00021917,3]
[349399759,1737165043851,-500.0,0.00021917,3]
[349399761,1737165043860,-500.0,0.00021917,3]
[349399763,1737165043870,-502.54182599,0.00021917,3]
[349399765,1737165043880,-500.0,0.00021917,3]
[349399767,1737165043889,-500.0,0.00021917,3]
[349399769,1737165043899,-500.0,0.00021917,3]
[349399771,1737165043908,-502.20440547,0.00021917,3]
[349399773,1737165043918,-500.0,0.00021917,3]
[349399774,1737165043927,-500.0,0.00021917,3]
[349399775,1737165043938,-501.83980604,0.00021917,3]
[349399776,1737165043947,-507.8987999,0.00021917,3]
[349399777,1737165043956,-500.0,0.00021917,3]
[349399778,1737165043966,-511.81403277,0.00021917,3]
[349399779,1737165043975,-500.0,0.00021917,3]
[349399780,1737165043984,-507.76248285,0.00021917,3]
[349399781,1737165043993,-218.77430758,0.00021917,3]
[349399782,1737165044002,-500.0,0.00021917,3]
[349399783,1737165044012,-510.20521347,0.00021917,3]
[349399784,1737165044021,-502.31494,0.00021917,3]
[349399785,1737165044030,-503.49052037,0.00021917,3]
[349399787,1737165044039,-500.0,0.00021917,3]
[349399789,1737165044049,-501.93927049,0.00021917,3]
[349399790,1737165044059,-155.249452,0.00021917,2]
[349399793,1737165044068,-500.98326952,0.00021917,3]
[349399795,1737165044078,-502.81954166,0.00021917,3]
[349399797,1737165044087,-500.0,0.00021917,3]
[349399799,1737165044096,-501.19247776,0.00021917,3]
[349399800,1737165044105,-500.0,0.00021917,3]